bitfinex-derivatives/quotes_SOLF0:USTF0_20250530
["timestamp","ask_amount","ask_price","bid_price","bid_amount"]
[1748620870241,17.88062754,160.97,160.92,6.2128]
[1748620870843,6.2114,160.96,160.92,6.2128]
[1748620871046,17.88062754,160.97,160.91,10.74641877]
[1748620871451,17.88062754,160.97,160.92,6.2129]
[1748620871744,17.88062754,160.97,160.91,10.74641877]
[1748620871941,17.88062754,160.97,160.9,32.0]
[1748620872546,6.2125,160.94,160.9,32.0]
[1748620872747,6.25702545,160.94,160.9,32.0]
[1748620873240,6.2127,160.93,160.9,32.0]
[1748620873546,0.04452545,160.94,160.9,32.0]
[1748620874151,0.04452545,160.94,160.9,42.74641877]
[1748620874336,6.2126,160.93,160.9,42.74641877]
[1748620875237,0.04452545,160.94,160.9,32.0]
[1748620876041,6.2127,160.93,160.9,32.0]
[1748620876242,0.04452545,160.94,160.9,32.0]
[1748620877749,6.2129,160.93,160.9,32.0]
[1748620878343,6.213,160.92,160.9,32.0]
[1748620878650,0.04452545,160.94,160.9,32.0]
[1748620878948,6.2128,160.93,160.9,32.0]
[1748620879545,6.25682545,160.94,160.9,32.0]
[1748620879744,0.04452545,160.94,160.9,42.74641877]
[1748620880148,0.04452545,160.94,160.91,6.2131]
[1748620880350,0.04452545,160.94,160.9,42.74641877]
[1748620880548,17.84,160.97,160.93,10.74641877]
[1748620880751,17.84,160.97,160.94,32.0]
[1748620880950,17.84,160.97,160.93,32.0]
[1748620881155,6.2115,160.96,160.93,32.0]
[1748620881658,0.04544838,160.96,160.93,32.04452545]
[1748620881859,332.0,160.95,160.75,32.0]
[1748620882063,42.77500291,160.94,160.8,10.77500291]
[1748620882354,6.2157,160.85,160.8,10.77500291]
[1748620882561,32.0,160.89,160.8,10.77500291]
[1748620882755,0.04019537,160.86,160.79,32.24]
[1748620883156,0.04019537,160.86,160.8,10.77500291]
[1748620883946,6.25549537,160.86,160.8,6.2174]
[1748620884651,6.25549537,160.86,160.81,6.2172]
[1748620885355,6.25549537,160.86,160.82,6.2167]
[1748620886163,6.25549537,160.86,160.81,6.2171]
[1748620886364,6.25549537,160.86,160.8,2.0842]
[1748620886555,0.04019537,160.86,160.8,2.0842]
[1748620888059,0.04019537,160.86,160.82,6.2165]
[1748620888460,6.25569537,160.86,160.8,2.0842]
[1748620889269,6.25569537,160.86,160.82,6.2168]
[1748620889760,0.04019537,160.86,160.81,6.217]
[1748620889970,0.04019537,160.86,160.8,2.0842]
[1748620890364,0.04019537,160.86,160.8,12.85920291]
[1748620890565,1.9927,160.94,160.83,10.77500291]
[1748620890769,6.2136,160.91,160.86,6.2149]
[1748620891062,34.2527,160.94,160.86,6.2149]
[1748620891260,34.2527,160.94,160.84,34.2289]
[1748620891459,23.0,160.9,160.84,34.2289]
[1748620891667,23.0,160.9,160.87,0.04117777]
[1748620891855,29.214,160.9,160.87,0.04117777]
[1748620892369,23.0,160.9,160.87,0.04117777]
[1748620893070,6.2142,160.89,160.87,0.04117777]
[1748620893361,23.0,160.9,160.87,0.04117777]
[1748620893969,23.0,160.9,160.81,32.26]
[1748620894162,55.26,160.9,160.81,32.26]
[1748620895057,0.04292112,160.87,160.81,32.26]
[1748620895762,6.2159,160.85,160.81,32.26]
[1748620895964,6.2159,160.85,160.81,32.22227399]
[1748620896163,0.04292112,160.87,160.81,38.43927399]
[1748620896870,6.2159,160.85,160.81,38.43927399]
[1748620897073,0.04292112,160.87,160.81,32.22227399]
[1748620897970,6.2167,160.83,160.81,32.22227399]
[1748620898173,0.04263513,160.84,160.81,38.43937399]
[1748620898363,6.25893513,160.84,160.81,38.43937399]
[1748620900172,6.25893513,160.84,160.81,32.22227399]
[1748620902283,6.2165,160.83,160.81,32.22227399]
[1748620902465,0.04263513,160.84,160.81,32.22227399]
[1748620902869,6.25893513,160.84,160.81,32.22227399]
[1748620903074,0.04263513,160.84,160.81,32.22227399]
[1748620903770,6.2167,160.83,160.81,32.22227399]
[1748620903972,0.04263513,160.84,160.81,32.22227399]
[1748620904380,0.04263513,160.84,160.79,8.39]
[1748620904878,6.217,160.82,160.79,8.39]
[1748620905177,6.217,160.82,160.78,575.1982]
[1748620905779,6.2175,160.81,160.78,568.98]
[1748620905979,0.04263513,160.84,160.75,34.2478]
[1748620906184,0.04646262,160.81,160.75,34.2478]
[1748620906374,0.04646262,160.81,160.75,36.3827]
[1748620906683,6.26386262,160.81,160.77,6.2187]
[1748620906875,0.04646262,160.81,160.75,36.3827]
[1748620907075,0.04646262,160.81,160.77,10.77500291]
[1748620907275,22.1459,160.85,160.81,6.2171]
[1748620907479,15.93,160.85,160.8,32.26]
[1748620908180,0.04580019,160.84,160.81,0.04145249]
[1748620908378,0.04580019,160.84,160.82,6.2166]
[1748620908579,0.04580019,160.84,160.81,0.04145249]
[1748620908980,6.26190019,160.84,160.81,0.04145249]
[1748620910384,0.04580019,160.84,160.81,6.25865249]
[1748620910971,6.26190019,160.84,160.81,0.04145249]
[1748620911380,0.04580019,160.84,160.81,0.04145249]
[1748620911875,6.26180019,160.84,160.81,0.04145249]
[1748620912075,0.04580019,160.84,160.81,0.04145249]
[1748620912488,0.04580019,160.84,160.81,6.25845249]
[1748620916491,13.88,160.86,160.81,10.8164554]
[1748620916682,13.88,160.86,160.84,10.77500291]
[1748620916879,13.88,160.86,160.84,32.02]
[1748620917080,13.88,160.86,160.81,42.8364554]
[1748620917485,0.04393899,160.85,160.82,6.2166]
[1748620918279,0.04393899,160.85,160.81,38.27845249]
[1748620918280,6.25963899,160.85,160.81,38.27845249]
[1748620918484,6.25963899,160.85,160.81,49.0534554]
[1748620918694,0.04393899,160.85,160.81,49.0534554]
[1748620919188,0.04393899,160.85,160.81,32.06145249]
[1748620919584,6.25973899,160.85,160.81,32.06145249]
[1748620919889,0.04393899,160.85,160.81,32.06145249]
[1748620920294,6.2161,160.84,160.81,32.06145249]
[1748620920495,0.04393899,160.85,160.81,32.06145249]
[1748620920694,6.25963899,160.85,160.81,32.06145249]
[1748620921310,6.25963899,160.85,160.81,38.27835249]
[1748620921795,6.2161,160.84,160.81,32.06145249]
[1748620921988,0.04393899,160.85,160.81,32.06145249]
[1748620922492,0.04393899,160.85,160.81,38.27845249]
[1748620923096,6.25983899,160.85,160.81,38.27845249]
[1748620923395,0.04393899,160.85,160.81,32.06145249]
[1748620923589,6.2161,160.84,160.81,32.06145249]
[1748620923790,0.04393899,160.85,160.81,32.06145249]
[1748620924294,6.2163,160.84,160.81,32.06145249]
[1748620924794,6.25973899,160.85,160.81,32.06145249]
[1748620924999,14.44,160.83,160.81,38.27865249]
[1748620927192,14.44,160.83,160.82,6.2168]
[1748620927396,0.04393899,160.85,160.82,10.77500291]
[1748620927787,0.04393899,160.85,160.83,6.2162]
[1748620928593,0.04393899,160.85,160.81,32.06145249]
[1748620929884,0.04393899,160.85,160.81,38.27855249]
[1748620930289,0.04393899,160.85,160.81,32.06145249]
[1748620930793,6.25973899,160.85,160.81,38.27845249]
[1748620932193,0.04393899,160.85,160.81,32.06145249]
[1748620932900,6.2162,160.84,160.81,32.06145249]
[1748620935990,0.04393899,160.85,160.81,0.04145249]
[1748620936502,6.218,160.79,160.75,38.2393]
[1748620936703,13.88,160.86,160.75,32.02]
[1748620937094,13.88,160.86,160.76,6.2188]
[1748620937499,0.04197952,160.83,160.79,0.04312137]
[1748620938194,6.2169,160.82,160.79,0.04312137]
[1748620938394,0.04197952,160.83,160.79,0.04312137]
[1748620938806,6.2176,160.8,160.79,0.04312137]
[1748620939903,6.1534,160.82,160.74,6.2198]
[1748620940290,6.1534,160.82,160.74,6.2199]
[1748620940798,0.04718742,160.8,160.75,6.2195]
[1748620941103,0.04718742,160.8,160.72,36.2293]
[1748620941301,6.26498742,160.8,160.77,6.2186]
[1748620941494,0.04718742,160.8,160.77,6.2186]
[1748620941694,0.04718742,160.8,160.72,36.2293]
[1748620941892,6.2186,160.78,160.72,36.2293]
[1748620942098,0.04681111,160.77,160.72,36.2293]
[1748620942400,6.2192,160.76,160.72,42.4499]
[1748620942602,6.2192,160.76,160.72,38.2406]
[1748620942797,0.04681111,160.77,160.72,32.02]
[1748620943699,6.2195,160.75,160.72,32.02]
[1748620945195,6.22,160.74,160.72,32.02]
[1748620948895,6.2197,160.75,160.72,32.02]
[1748620951900,15.55,160.76,160.74,10.77500291]
[1748620953004,15.55,160.76,160.75,6.2195]
[1748620954712,0.04681111,160.77,160.75,6.2195]
[1748620956510,0.04681111,160.77,160.76,6.2191]
[1748620956902,16.0,160.79,160.78,6.2184]
[1748620957101,32.02,160.89,160.79,10.77500291]
[1748620957414,32.02,160.89,160.82,10.77500291]
[1748620957611,6.2147,160.88,160.83,6.216]
[1748620957817,6.2147,160.88,160.82,42.79500291]
[1748620958114,0.04282347,160.87,160.83,0.04705225]
[1748620958299,0.04282347,160.87,160.83,6.26325225]
[1748620958300,6.25772347,160.87,160.83,6.26325225]
[1748620958504,15.58282347,160.87,160.83,6.26325225]
[1748620959202,15.58282347,160.87,160.84,6.2159]
[1748620960111,15.58282347,160.87,160.84,16.99090291]
[1748620960613,15.58282347,160.87,160.84,10.77500291]
[1748620961711,15.58282347,160.87,160.83,10.82205516]
[1748620962706,15.58282347,160.87,160.83,0.04705225]
[1748620963409,6.2155,160.86,160.83,0.04705225]
[1748620967110,6.2157,160.85,160.83,10.82205516]
[1748620967413,15.58282347,160.87,160.83,0.04705225]
[1748620967608,6.216,160.84,160.83,0.04705225]
[1748620970814,15.58282347,160.87,160.79,32.02]
[1748620971013,1.9984,160.86,160.76,32.02]
[1748620971321,3.9972,160.86,160.76,38.2391]
[1748620971618,6.2178,160.8,160.76,38.2391]
[1748620971813,32.02,160.84,160.76,38.2391]
[1748620972118,6.218,160.79,160.76,38.2391]
[1748620972514,0.04354876,160.8,160.76,38.2391]
[1748620972915,6.26134876,160.8,160.76,38.2391]
[1748620973217,0.04354876,160.8,160.76,32.02]
[1748620973415,6.2185,160.78,160.76,32.02]
[1748620973817,6.2185,160.78,160.74,6.2196]
[1748620974205,6.2185,160.78,160.73,47.01540291]
[1748620974415,6.2185,160.78,160.75,6.2194]
[1748620974917,6.2185,160.78,160.73,47.01540291]
[1748620975317,6.2185,160.78,160.73,53.23550291]
[1748620975511,6.2185,160.78,160.73,47.01540291]
[1748620975714,6.2188,160.77,160.73,47.01540291]
[1748620975915,6.2605115,160.77,160.73,53.23550291]
[1748620976215,6.2195,160.76,160.73,32.0]
[1748620976417,0.0417115,160.77,160.73,32.0]
[1748620976722,6.2193,160.76,160.73,32.0]
[1748620979021,6.2606115,160.77,160.73,38.2202]
[1748620979317,37.0,160.83,160.74,10.77500291]
[1748620979523,6.2173,160.81,160.77,16.99370291]
[1748620979722,37.0,160.83,160.74,2.0081]
[1748620980225,6.2186,160.78,160.74,8.228]
[1748620980415,0.0462223,160.78,160.74,2.04734185]
[1748620980616,0.0462223,160.78,160.74,0.03924185]
[1748620980821,6.2189,160.77,160.74,0.03924185]
[1748620981023,0.0462223,160.78,160.74,0.03924185]
[1748620981523,0.0462223,160.78,160.74,6.25894185]
[1748620983029,6.2187,160.77,160.74,6.25894185]
[1748620983324,0.0462223,160.78,160.74,0.03924185]
[1748620983526,6.2195,160.75,160.74,0.03924185]
[1748620984224,6.2205,160.73,160.7,575.0612]
[1748620984424,6.2205,160.73,160.7,38.2412]
[1748620984625,4.1649,160.77,160.7,32.02]
[1748620984926,6.2205,160.73,160.7,32.02]
[1748620985313,6.26419955,160.73,160.71,6.221]
[1748620985922,0.04369955,160.73,160.71,6.221]
[1748620986128,0.04369955,160.73,160.72,6.2207]
[1748620987322,0.04369955,160.73,160.71,6.2209]
[1748620987627,0.04369955,160.73,160.7,32.02]
[1748620987927,0.04369955,160.73,160.71,6.2211]
[1748620988123,0.04369955,160.73,160.7,32.02]
[1748620988520,0.04369955,160.73,160.71,6.2211]
[1748620989331,0.04369955,160.73,160.7,38.2413]
[1748620989531,0.04369955,160.73,160.7,32.02]
[1748620990822,0.04369955,160.73,160.68,218.71530275]
[1748620991330,6.2213,160.71,160.68,218.71530275]
[1748620992431,6.2213,160.71,160.68,224.93750275]
[1748620992630,6.2213,160.71,160.68,218.71530275]
[1748620992826,6.2209,160.72,160.68,218.71530275]
[1748620993136,0.04369955,160.73,160.68,218.71530275]
[1748620993633,0.04369955,160.73,160.69,6.2216]
[1748620994229,0.04369955,160.73,160.68,218.71530275]
[1748620994538,15.55,160.74,160.72,10.77500291]
[1748620994832,15.55,160.74,160.72,42.79500291]
[1748620995030,15.55,160.74,160.72,32.02]
[1748620995227,15.55,160.74,160.69,34.1573]
[1748620995428,15.55,160.74,160.7,0.04357205]
[1748620995429,0.04304594,160.73,160.7,0.04357205]
[1748620996026,6.26334594,160.73,160.7,0.04357205]
[1748620997033,6.2207,160.72,160.7,0.04357205]
[1748620997729,0.04304594,160.73,160.7,0.04357205]
[1748620997730,6.2211,160.71,160.7,0.04357205]
[1748620998331,6.2211,160.71,160.61,1.9839]
[1748620998332,32.02,160.71,160.61,1.9839]
[1748620998746,32.02,160.71,160.64,6.2237]
[1748620998946,32.02,160.71,160.61,1.9839]
[1748620999147,32.02,160.71,160.62,10.77500291]
[1748620999449,32.02,160.71,160.61,1.9839]
[1748620999450,0.040481,160.68,160.61,1.9839]
[1748620999652,0.040481,160.68,160.62,10.77500291]
[1748621000148,0.040481,160.68,160.64,6.2236]
[1748621001949,6.262681,160.68,160.64,6.2236]
[1748621002143,6.262681,160.68,160.61,10.77500291]
[1748621002549,6.262681,160.68,160.63,6.2238]
[1748621002745,6.2227,160.67,160.6,155.1]
[1748621002952,6.2227,160.67,160.6,165.87500291]
[1748621003249,0.040481,160.68,160.6,165.87500291]
[1748621003250,6.2234,160.65,160.6,32.02]
[1748621003451,0.04632412,160.64,160.6,32.02]
[1748621004151,0.04632412,160.64,160.61,10.77500291]
[1748621004848,0.04632412,160.64,160.61,16.99970291]
[1748621005050,0.04632412,160.64,160.61,10.77500291]
[1748621005244,0.04632412,160.64,160.61,6.2246]
[1748621005751,0.04632412,160.64,160.6,42.79500291]
[1748621006543,0.04632412,160.64,160.61,6.2249]
[1748621006939,0.04632412,160.64,160.6,42.79500291]
[1748621007143,0.04632412,160.64,160.61,6.2249]
[1748621008847,0.04632412,160.64,160.62,6.2246]
[1748621009049,0.04632412,160.64,160.6,42.79500291]
[1748621009252,0.04632412,160.64,160.63,6.2242]
[1748621010354,5.0,160.68,160.64,6.2236]
[1748621010553,50.52,160.7,160.63,10.77500291]
[1748621010752,17.66,160.7,160.66,10.77500291]
[1748621010955,5.0,160.73,160.69,10.77500291]
[1748621011154,15.55,160.74,160.69,10.77500291]
[1748621011357,0.0469631,160.73,160.7,0.04407554]
[1748621011947,0.0469631,160.73,160.7,6.26547554]
[1748621012144,0.0469631,160.73,160.7,0.04407554]
[1748621012555,0.0469631,160.73,160.71,6.2208]
[1748621013252,15.55,160.74,160.72,10.77500291]
[1748621013749,6.2191,160.76,160.72,10.77500291]
[1748621014151,49.93,160.8,160.72,10.77500291]
[1748621014349,0.04539352,160.78,160.74,0.03929735]
[1748621014551,6.2195,160.75,160.74,0.03929735]
[1748621015250,0.04539352,160.78,160.74,0.03929735]
[1748621015965,12.07,160.8,160.76,10.77500291]
[1748621016256,12.07,160.8,160.78,6.2183]
[1748621016652,6.2176,160.81,160.76,16.99400291]
[1748621016851,0.047612,160.8,160.77,0.0436374]
[1748621017453,0.047612,160.8,160.77,6.2621374]
[1748621018053,0.047612,160.8,160.77,0.0436374]
[1748621018253,6.2182,160.79,160.77,0.0436374]
[1748621018756,0.047612,160.8,160.77,0.0436374]
[1748621019150,6.2181,160.79,160.77,0.0436374]
[1748621019659,0.047612,160.8,160.77,0.0436374]
[1748621020049,0.047612,160.8,160.77,6.2623374]
[1748621020850,0.047612,160.8,160.77,0.0436374]
[1748621022157,14.777612,160.8,160.77,0.0436374]
[1748621023260,14.777612,160.8,160.78,32.84]
[1748621023555,14.47,160.82,160.78,50.81076937]
[1748621024351,14.36,160.86,160.78,50.81076937]
[1748621024752,14.36,160.86,160.82,6.2165]
[1748621024951,14.36,160.86,160.82,32.84]
[1748621025353,14.40430504,160.86,160.82,39.09741836]
[1748621025654,14.40430504,160.86,160.82,32.88071836]
[1748621027462,20.61970504,160.86,160.82,32.88071836]
[1748621027759,14.40430504,160.86,160.82,32.88071836]
[1748621027956,14.40430504,160.86,160.83,6.2162]
[1748621028162,14.40430504,160.86,160.82,32.88071836]
[1748621029158,6.2159,160.85,160.82,32.88071836]
[1748621030462,20.61970504,160.86,160.82,32.88071836]
[1748621030662,20.61970504,160.86,160.82,39.09751836]
[1748621030858,14.40430504,160.86,160.82,39.09751836]
[1748621031165,14.40430504,160.86,160.82,32.88071836]
[1748621032358,14.40430504,160.86,160.84,6.2158]
[1748621032654,14.40430504,160.86,160.82,35.03801836]
[1748621033060,14.40430504,160.86,160.82,41.25461836]
[1748621033259,14.40430504,160.86,160.82,35.03801836]
[1748621034366,14.40430504,160.86,160.85,6.2156]
[1748621034670,0.04430504,160.86,160.85,6.2156]
[1748621039161,16.31,160.89,160.88,6.2145]
[1748621039358,16.31,160.89,160.88,32.44]
[1748621040069,16.31,160.89,160.86,6.2151]
[1748621040369,16.31,160.89,160.87,0.04524191]
[1748621041172,16.31,160.89,160.88,6.2145]
[1748621041973,16.31,160.89,160.87,0.04524191]
[1748621042968,16.31,160.89,160.82,38.6565]
[1748621043566,16.31,160.89,160.83,6.2164]
[1748621044073,6.215,160.87,160.84,0.04524985]
[1748621044464,16.31,160.89,160.84,0.04524985]
[1748621044973,6.2151,160.87,160.84,0.04524985]
[1748621045174,16.31,160.89,160.84,0.04524985]
[1748621045670,6.215,160.87,160.84,0.04524985]
[1748621045870,16.31,160.89,160.84,0.04524985]
[1748621046671,6.2147,160.88,160.84,6.26114985]
[1748621048175,6.2149,160.87,160.84,6.26114985]
[1748621048372,32.44,160.88,160.84,0.04524985]
[1748621048672,32.44,160.88,160.79,32.44]
[1748621048868,6.2161,160.84,160.81,6.217]
[1748621049474,6.26161534,160.84,160.81,6.26250474]
[1748621050176,6.26161534,160.84,160.81,0.04550474]
[1748621050570,6.2164,160.83,160.81,0.04550474]
[1748621050864,0.04551534,160.84,160.81,0.04550474]
[1748621051063,6.2168,160.82,160.81,0.04550474]
[1748621051264,0.04551534,160.84,160.76,32.44]
[1748621051470,15.77072894,160.87,160.76,32.44]
[1748621051872,10.77072894,160.84,160.73,32.44]
[1748621052071,36.6295,160.83,160.73,32.44]
[1748621052270,0.04301737,160.8,160.76,0.03996489]
[1748621052778,6.2187,160.77,160.76,0.03996489]
[1748621053071,32.44,160.79,160.7,32.44]
[1748621053279,6.2194,160.76,160.7,32.44]
[1748621053670,6.2194,160.76,160.73,6.2203]
[1748621053867,6.25857103,160.76,160.73,6.26021509]
[1748621054078,6.2195,160.75,160.73,6.26021509]
[1748621054374,0.03917103,160.76,160.73,6.26021509]
[1748621054879,6.25867103,160.76,160.73,6.26021509]
[1748621055171,6.25867103,160.76,160.73,0.03991509]
[1748621055378,0.03917103,160.76,160.73,0.03991509]
[1748621055871,0.03917103,160.76,160.73,6.26011509]
[1748621056072,0.03917103,160.76,160.73,0.03991509]
[1748621056870,6.2198,160.75,160.73,0.03991509]
[1748621057877,6.25837103,160.76,160.73,0.03991509]
[1748621058265,0.03917103,160.76,160.73,0.03991509]
[1748621059079,6.2197,160.75,160.73,0.03991509]
[1748621060872,6.2199,160.74,160.73,0.03991509]
[1748621061879,2.1009,160.75,160.67,32.46]
[1748621062086,5.0,160.74,160.67,32.46]
[1748621062578,6.2209,160.72,160.67,38.6824]
[1748621062965,0.04111419,160.71,160.68,0.04572097]
[1748621063377,2.0984,160.76,160.68,0.04572097]
[1748621063679,8.3178,160.76,160.71,6.2209]
[1748621064281,0.04228572,160.75,160.72,0.04461133]
[1748621064986,0.04228572,160.75,160.73,6.2201]
[1748621065982,0.04228572,160.75,160.74,6.2199]
[1748621067577,11.81,160.77,160.76,6.2191]
[1748621069387,11.81,160.77,160.75,38.8994]
[1748621069577,11.81,160.77,160.75,32.68]
[1748621069778,11.81,160.77,160.75,38.8993]
[1748621070391,11.81,160.77,160.76,6.2191]
[1748621070779,11.81,160.77,160.75,32.68]
[1748621071487,14.57636783,160.78,160.75,32.68]
[1748621071984,14.57636783,160.78,160.76,6.2191]
[1748621072184,14.57636783,160.78,160.75,32.72117173]
[1748621072680,14.57636783,160.78,160.75,0.04117173]
[1748621074289,6.219,160.77,160.75,0.04117173]
[1748621074682,14.57636783,160.78,160.75,0.04117173]
[1748621076182,6.219,160.77,160.75,0.04117173]
[1748621076486,14.57636783,160.78,160.75,0.04117173]
[1748621076690,20.79476783,160.78,160.75,0.04117173]
[1748621077381,6.2189,160.77,160.75,0.04117173]
[1748621078384,20.79486783,160.78,160.75,0.04117173]
[1748621078684,14.57636783,160.78,160.75,0.04117173]
[1748621079583,6.2188,160.77,160.75,0.04117173]
[1748621081995,6.2191,160.76,160.75,0.04117173]
[1748621082887,5.0,160.77,160.75,0.04117173]
[1748621083289,11.2191,160.77,160.75,0.04117173]
[1748621085998,6.2191,160.76,160.75,0.04117173]
[1748621086396,5.0,160.77,160.75,0.04117173]
[1748621086605,11.2189,160.77,160.75,0.04117173]
[1748621086895,5.0,160.77,160.75,0.04117173]
[1748621087088,14.57636783,160.78,160.75,10.83177861]
[1748621087285,5.0,160.8,160.76,32.68]
[1748621087490,5.0,160.8,160.78,6.218]
[1748621087693,5.0,160.8,160.78,10.79060688]
[1748621088201,5.0,160.8,160.78,17.00880688]
[1748621088402,6.217,160.82,160.78,17.00880688]
[1748621088403,0.04033647,160.81,160.78,17.00880688]
[1748621088600,0.04033647,160.81,160.78,17.05016738]
[1748621088993,0.04033647,160.81,160.79,6.2179]
[1748621090294,0.04033647,160.81,160.78,17.05016738]
[1748621090495,6.25773647,160.81,160.78,10.83196738]
[1748621090802,6.25773647,160.81,160.78,0.0413605]
[1748621090996,6.2177,160.8,160.78,0.0413605]
[1748621091591,6.218,160.79,160.78,0.0413605]
[1748621093398,6.2178,160.8,160.78,0.0413605]
[1748621093793,6.218,160.79,160.78,0.0413605]
[1748621096003,6.2177,160.8,160.78,0.0413605]
[1748621098108,11.2177,160.8,160.78,0.0413605]
[1748621098810,6.218,160.79,160.78,0.0413605]
[1748621099000,5.0,160.8,160.78,0.0413605]
[1748621099195,5.0,160.8,160.79,6.218]
[1748621100508,12.1,160.85,160.78,10.83196738]
[1748621100699,12.1,160.85,160.81,10.79060688]
[1748621101008,12.1,160.85,160.81,42.99060688]
[1748621101311,12.1,160.85,160.81,49.20760688]
[1748621101511,12.14526111,160.85,160.81,43.03129066]
[1748621101713,12.14526111,160.85,160.81,49.24829066]
[1748621101903,12.14526111,160.85,160.81,43.03129066]
[1748621102701,12.14526111,160.85,160.81,32.24068378]
[1748621103209,6.2166,160.83,160.81,32.24068378]
[1748621103402,12.14526111,160.85,160.81,0.04068378]
[1748621104006,6.2166,160.83,160.81,0.04068378]
[1748621105408,6.2168,160.82,160.81,0.04068378]
[1748621106006,6.2165,160.83,160.81,0.04068378]
[1748621109415,6.2162,160.84,160.81,0.04068378]
[1748621109819,0.04526111,160.85,160.81,0.04068378]
[1748621110717,6.2163,160.84,160.81,0.04068378]
[1748621112108,0.04526111,160.85,160.81,0.04068378]
[1748621113610,0.04526111,160.85,160.84,6.216]
[1748621114316,11.13,160.88,160.85,6.2154]
[1748621115212,11.17629561,160.88,160.85,0.04133721]
[1748621115405,11.17629561,160.88,160.86,6.2152]
[1748621115609,9.1193,160.93,160.86,42.97060688]
[1748621115812,9.1193,160.93,160.89,6.2138]
[1748621115813,7.107,160.93,160.89,6.2138]
[1748621116205,32.18,160.95,160.89,10.79060688]
[1748621116405,38.392,160.95,160.9,6.2135]
[1748621116611,5.0,160.97,160.9,6.2135]
[1748621116806,6.2122,160.94,160.92,0.04031428]
[1748621117012,0.0464733,160.95,160.92,0.04031428]
[1748621117413,6.2124,160.94,160.92,0.04031428]
[1748621118517,0.0464733,160.95,160.92,0.04031428]
[1748621118918,6.2125,160.94,160.92,0.04031428]
[1748621119115,0.0464733,160.95,160.92,10.83092116]
[1748621119717,0.0464733,160.95,160.92,17.04352116]
[1748621120321,0.0464733,160.95,160.92,6.25291428]
[1748621121221,0.0464733,160.95,160.92,0.04031428]
[1748621122219,6.2122,160.94,160.92,0.04031428]
[1748621125124,6.2583733,160.95,160.92,6.25311428]
[1748621126322,0.0464733,160.95,160.93,6.2125]
[1748621126522,0.0464733,160.95,160.92,0.04031428]
[1748621127423,6.2584733,160.95,160.92,0.04031428]
[1748621128627,0.0464733,160.95,160.92,6.25311428]
[1748621128921,0.0464733,160.95,160.92,0.04031428]
[1748621129120,6.2585733,160.95,160.92,0.04031428]
[1748621129920,0.0464733,160.95,160.92,0.04031428]
[1748621131516,5.0,160.98,160.94,10.79060688]
[1748621132023,5.0,160.98,160.94,49.04250688]
[1748621132211,5.0,160.98,160.94,32.04]
[1748621132616,6.2112,160.97,160.94,32.04]
[1748621135811,5.04518937,160.98,160.94,32.04]
[1748621136021,5.04518937,160.98,160.95,10.79060688]
[1748621136327,5.04518937,160.98,160.96,6.2114]
[1748621136519,0.04518937,160.98,160.96,6.2114]
[1748621138425,5.0,161.03,160.95,10.83611715]
[1748621138632,5.0,161.03,160.98,10.79060688]
[1748621139213,11.2089,161.03,160.98,10.79060688]
[1748621139519,11.2089,161.03,160.98,0.04683127]
[1748621139520,12.92494763,161.02,160.98,0.04683127]
[1748621140120,19.13414763,161.02,160.98,6.25713127]
[1748621140315,12.92494763,161.02,160.98,0.04683127]
[1748621140516,12.92494763,161.02,160.98,32.08683127]
[1748621140927,12.92494763,161.02,160.99,6.2102]
[1748621142029,12.92494763,161.02,160.98,38.29733127]
[1748621142325,12.92494763,161.02,160.98,32.08683127]
[1748621143025,12.92494763,161.02,161.0,6.2098]
[1748621143421,12.92494763,161.02,161.0,10.79060688]
[1748621143922,12.92494763,161.02,161.01,6.2095]
[1748621146933,5.0,161.06,161.01,10.79060688]
[1748621147145,8.3596,161.09,161.02,32.02]
[1748621147433,4.2662,161.1,161.02,32.02]
[1748621147633,2.1272,161.1,161.04,10.79060688]
[1748621147830,0.04623635,161.09,161.05,6.24924832]
[1748621148632,0.04623635,161.09,161.05,0.04144832]
[1748621149441,0.04623635,161.09,161.07,10.79060688]
[1748621149628,1.977,161.14,161.07,10.79060688]
[1748621149824,14.5861,161.15,161.07,10.79060688]
[1748621150536,0.04409827,161.13,161.09,0.04033357]
[1748621151934,6.2053,161.12,161.09,0.04033357]